[Event "Titled Tuesday Blitz August 16 Late 2022"]
[White "D`Arruda, Ricardo D."]
[Black "Tanenbaum, Zachary"]
[WhiteFideId "100692"]
[BlackFideId "2060850"]
[WhiteElo "2271"]
[BlackElo "2175"]
[Result "1-0"]
[Round "09"]
[TimeControl "180+1"]
[Date "2022.08.18"]
[WhiteClock "0:00:00"]
[BlackClock "0:00:00"]

1. d4 {[%clk 0:00:00]}  d5 {[%clk 0:00:00]} 2. Nf3 {[%clk 0:00:00]}  Nf6 {[%clk 0:00:00]} 3. c4 {[%clk 0:00:00]}  dxc4 {[%clk 0:00:00]} 4. e3 {[%clk 0:00:00]}  a6 {[%clk 0:00:00]} 5. Bxc4 {[%clk 0:00:00]}  e6 {[%clk 0:00:00]} 6. O-O {[%clk 0:00:00]}  c5 {[%clk 0:00:00]} 7. b3 {[%clk 0:00:00]}  cxd4 {[%clk 0:00:00]} 8. Qxd4 {[%clk 0:00:00]}  Qxd4 {[%clk 0:00:00]} 9. Nxd4 {[%clk 0:00:00]}  Bd7 {[%clk 0:00:00]} 10. Bb2 {[%clk 0:00:00]}  Nc6 {[%clk 0:00:00]} 11. Nxc6 {[%clk 0:00:00]}  Bxc6 {[%clk 0:00:00]} 12. Nc3 {[%clk 0:00:00]}  Bc5 {[%clk 0:00:00]} 13. Rfd1 {[%clk 0:00:00]}  Ke7 {[%clk 0:00:00]} 14. Na4 {[%clk 0:00:00]}  Bb4 {[%clk 0:00:00]} 15. a3 {[%clk 0:00:00]}  Bd6 {[%clk 0:00:00]} 16. Nc3 {[%clk 0:00:00]}  b5 {[%clk 0:00:00]} 17. Be2 {[%clk 0:00:00]}  Rac8 {[%clk 0:00:00]} 18. Rac1 {[%clk 0:00:00]}  Rhd8 {[%clk 0:00:00]} 19. h3 {[%clk 0:00:00]}  g6 {[%clk 0:00:00]} 20. Bf3 {[%clk 0:00:00]}  Bxf3 {[%clk 0:00:00]} 21. gxf3 {[%clk 0:00:00]}  Rc7 {[%clk 0:00:00]} 22. Ne4 {[%clk 0:00:00]}  Nxe4 {[%clk 0:00:00]} 23. fxe4 {[%clk 0:00:00]}  Rdc8 {[%clk 0:00:00]} 24. Rxc7+ {[%clk 0:00:00]}  Rxc7 {[%clk 0:00:00]} 25. Bf6+ {[%clk 0:00:00]}  Kxf6 {[%clk 0:00:00]} 26. Rxd6 {[%clk 0:00:00]}  Rc3 {[%clk 0:00:00]} 27. Rxa6 {[%clk 0:00:00]}  Rxb3 {[%clk 0:00:00]} 28. a4 {[%clk 0:00:00]}  b4 {[%clk 0:00:00]} 29. Rb6 {[%clk 0:00:00]}  Ke5 {[%clk 0:00:00]} 30. Rb7 {[%clk 0:00:00]}  Kxe4 {[%clk 0:00:00]} 31. Rxf7 {[%clk 0:00:00]}  Ra3 {[%clk 0:00:00]} 32. Rf4+ {[%clk 0:00:00]}  Kd3 {[%clk 0:00:00]} 33. Rxb4 {[%clk 0:00:00]}  e5 {[%clk 0:00:00]} 34. Kg2 {[%clk 0:00:00]}  e4 {[%clk 0:00:00]} 35. Rd4+ {[%clk 0:00:00]}  Ke2 {[%clk 0:00:00]} 36. Rxe4 {[%clk 0:00:00]}  Ra2 {[%clk 0:00:00]} 37. h4 {[%clk 0:00:00]}  h6 {[%clk 0:00:00]} 38. Rg4 {[%clk 0:00:00]}  Ke1 {[%clk 0:00:00]} 39. Rf4 {[%clk 0:00:00]}  g5 {[%clk 0:00:00]} 40. hxg5 {[%clk 0:00:00]}  hxg5 {[%clk 0:00:00]} 41. Rf5 {[%clk 0:00:00]}  Rxa4 {[%clk 0:00:00]} 42. Rxg5 {[%clk 0:00:00]}  Ke2 {[%clk 0:00:00]} 43. Kg3 {[%clk 0:00:00]}  Ra1 {[%clk 0:00:00]} 44. Rf5 {[%clk 0:00:00]}  Rg1+ {[%clk 0:00:00]} 45. Kh2 {[%clk 0:00:00]}  Rg8 {[%clk 0:00:00]} 46. e4 {[%clk 0:00:00]}  Kd3 {[%clk 0:00:00]} 47. f3 {[%clk 0:00:00]}  Ke3 {[%clk 0:00:00]} 48. Kh3 {[%clk 0:00:00]}  Kf2 {[%clk 0:00:00]} 49. Kh4 {[%clk 0:00:00]}  Ke3 {[%clk 0:00:00]} 50. e5 {[%clk 0:00:00]}  Kd4 {[%clk 0:00:00]} 51. f4 {[%clk 0:00:00]}  Kd5 {[%clk 0:00:00]} 52. Rf6 {[%clk 0:00:00]}  Ke4 {[%clk 0:00:00]} 53. e6 {[%clk 0:00:00]}  Kd5 {[%clk 0:00:00]} 54. f5 {[%clk 0:00:00]}  Kd6 {[%clk 0:00:00]} 55. Rf7 {[%clk 0:00:00]}  Rg1 {[%clk 0:00:00]} 56. e7 {[%clk 0:00:00]}  Kd7 {[%clk 0:00:00]} 57. f6 {[%clk 0:00:00]}  Rg2 {[%clk 0:00:00]} 58. Rf8 {[%clk 0:00:00]} 1-0


[Site "https://www.chess.com"]

[Event "Titled Tuesday Blitz August 16 Late 2022"]
[White "Deviprasath, Sharvesh"]
[Black "Voege, Tobias"]
[WhiteFideId "30938228"]
[BlackFideId "1270513"]
[WhiteElo "2102"]
[BlackElo "2360"]
[Result "0-1"]
[Round "09"]
[TimeControl "180+1"]
[Date "2022.08.18"]
[WhiteClock "0:00:00"]
[BlackClock "0:00:00"]

1. d4 {[%clk 0:00:00]}  Nf6 {[%clk 0:00:00]} 2. c4 {[%clk 0:00:00]}  g6 {[%clk 0:00:00]} 3. Nc3 {[%clk 0:00:00]}  Bg7 {[%clk 0:00:00]} 4. Nf3 {[%clk 0:00:00]}  O-O {[%clk 0:00:00]} 5. Bg5 {[%clk 0:00:00]}  c5 {[%clk 0:00:00]} 6. d5 {[%clk 0:00:00]}  d6 {[%clk 0:00:00]} 7. Qd2 {[%clk 0:00:00]}  Na6 {[%clk 0:00:00]} 8. Bh6 {[%clk 0:00:00]}  Ne8 {[%clk 0:00:00]} 9. h4 {[%clk 0:00:00]}  f6 {[%clk 0:00:00]} 10. h5 {[%clk 0:00:00]}  Bxh6 {[%clk 0:00:00]} 11. Qxh6 {[%clk 0:00:00]}  g5 {[%clk 0:00:00]} 12. Ne4 {[%clk 0:00:00]}  Bf5 {[%clk 0:00:00]} 13. Ng3 {[%clk 0:00:00]}  Ng7 {[%clk 0:00:00]} 14. e4 {[%clk 0:00:00]}  Qa5+ {[%clk 0:00:00]} 15. Nd2 {[%clk 0:00:00]}  Nb4 {[%clk 0:00:00]} 16. exf5 {[%clk 0:00:00]}  Nc2+ {[%clk 0:00:00]} 17. Kd1 {[%clk 0:00:00]}  Nxa1 {[%clk 0:00:00]} 18. Bd3 {[%clk 0:00:00]}  Qxa2 {[%clk 0:00:00]} 19. Nge4 {[%clk 0:00:00]}  Nxf5 {[%clk 0:00:00]} 0-1


[Site "https://www.chess.com"]

[Event "Titled Tuesday Blitz August 16 Late 2022"]
[White "Djordjevic, Vuk"]
[Black "Sourath Biswas"]
[WhiteFideId "902098"]
[BlackFideId "35091484"]
[WhiteElo "2456"]
[BlackElo "1777"]
[Result "0-1"]
[Round "09"]
[TimeControl "180+1"]
[Date "2022.08.16"]
[WhiteClock "0:00:01"]
[BlackClock "0:00:12"]

1. d4 {[%clk 0:02:59]}  Nf6 {[%clk 0:02:59]} 2. Bg5 {[%clk 0:02:57]}  g6 {[%clk 0:02:33]} 3. Bxf6 {[%clk 0:02:57]}  exf6 {[%clk 0:02:29]} 4. c4 {[%clk 0:02:57]}  d5 {[%clk 0:02:28]} 5. cxd5 {[%clk 0:02:56]}  Qxd5 {[%clk 0:02:26]} 6. Nc3 {[%clk 0:02:57]}  Qd8 {[%clk 0:02:24]} 7. e3 {[%clk 0:02:56]}  Nd7 {[%clk 0:02:18]} 8. g3 {[%clk 0:02:54]}  Bd6 {[%clk 0:02:14]} 9. Bg2 {[%clk 0:02:52]}  O-O {[%clk 0:02:14]} 10. Nf3 {[%clk 0:02:45]}  c6 {[%clk 0:02:13]} 11. O-O {[%clk 0:02:44]}  f5 {[%clk 0:02:08]} 12. Nd2 {[%clk 0:02:44]}  Nf6 {[%clk 0:01:57]} 13. Nc4 {[%clk 0:02:41]}  Bc7 {[%clk 0:01:55]} 14. b4 {[%clk 0:02:40]}  Be6 {[%clk 0:01:55]} 15. Qd3 {[%clk 0:02:40]}  h5 {[%clk 0:01:14]} 16. b5 {[%clk 0:02:35]}  Rc8 {[%clk 0:01:01]} 17. bxc6 {[%clk 0:02:33]}  bxc6 {[%clk 0:01:02]} 18. Rfd1 {[%clk 0:02:11]}  h4 {[%clk 0:01:01]} 19. Na4 {[%clk 0:02:11]}  Ng4 {[%clk 0:00:54]} 20. Nc5 {[%clk 0:01:43]}  Bd5 {[%clk 0:00:54]} 21. f3 {[%clk 0:01:11]}  Bxc4 {[%clk 0:00:26]} 22. Qc3 {[%clk 0:00:47]}  Ba5 {[%clk 0:00:25]} 23. Qxc4 {[%clk 0:00:46]}  Nxe3 {[%clk 0:00:25]} 24. Qd3 {[%clk 0:00:25]}  Nxd1 {[%clk 0:00:25]} 25. Rxd1 {[%clk 0:00:25]}  hxg3 {[%clk 0:00:26]} 26. hxg3 {[%clk 0:00:25]}  Bb6 {[%clk 0:00:27]} 27. Na4 {[%clk 0:00:25]}  Qd6 {[%clk 0:00:22]} 28. Kh2 {[%clk 0:00:21]}  Rfd8 {[%clk 0:00:19]} 29. Nxb6 {[%clk 0:00:17]}  axb6 {[%clk 0:00:20]} 30. f4 {[%clk 0:00:17]}  Ra8 {[%clk 0:00:19]} 31. Qc4 {[%clk 0:00:16]}  b5 {[%clk 0:00:18]} 32. Qc2 {[%clk 0:00:16]}  Ra3 {[%clk 0:00:17]} 33. Bxc6 {[%clk 0:00:12]}  b4 {[%clk 0:00:16]} 34. d5 {[%clk 0:00:09]}  Kg7 {[%clk 0:00:14]} 35. Qb2+ {[%clk 0:00:08]}  Qf6 {[%clk 0:00:14]} 36. Qe2 {[%clk 0:00:05]}  Rh8+ {[%clk 0:00:12]} 37. Kg2 {[%clk 0:00:05]}  Qc3 {[%clk 0:00:12]} 38. Qf2 {[%clk 0:00:06]}  Qc4 {[%clk 0:00:11]} 39. g4 {[%clk 0:00:01]}  Qe4+ {[%clk 0:00:11]} 40. Kf1 {[%clk 0:00:01]}  Rh1+ {[%clk 0:00:12]} 0-1


[Site "https://www.chess.com"]

[Event "Titled Tuesday Blitz August 16 Late 2022"]
[White "Do Nascimento,Christian Almeida"]
[Black "Ardila, Oscar Humberto"]
[WhiteFideId "2143801"]
[BlackFideId "4404742"]
[WhiteElo "2085"]
[BlackElo "1939"]
[Result "1-0"]
[Round "09"]
[TimeControl "180+1"]
[Date "2022.08.18"]
[WhiteClock "0:00:00"]
[BlackClock "0:00:00"]

1. e4 {[%clk 0:00:00]}  e5 {[%clk 0:00:00]} 2. Nf3 {[%clk 0:00:00]}  Nf6 {[%clk 0:00:00]} 3. Nc3 {[%clk 0:00:00]}  Nc6 {[%clk 0:00:00]} 4. Bb5 {[%clk 0:00:00]}  Bb4 {[%clk 0:00:00]} 5. O-O {[%clk 0:00:00]}  O-O {[%clk 0:00:00]} 6. d3 {[%clk 0:00:00]}  d6 {[%clk 0:00:00]} 7. Bg5 {[%clk 0:00:00]}  Bxc3 {[%clk 0:00:00]} 8. bxc3 {[%clk 0:00:00]}  Qe7 {[%clk 0:00:00]} 9. Bxc6 {[%clk 0:00:00]}  bxc6 {[%clk 0:00:00]} 10. h3 {[%clk 0:00:00]}  Be6 {[%clk 0:00:00]} 11. Nh2 {[%clk 0:00:00]}  h6 {[%clk 0:00:00]} 12. Be3 {[%clk 0:00:00]}  g5 {[%clk 0:00:00]} 13. h4 {[%clk 0:00:00]}  Nh7 {[%clk 0:00:00]} 14. Qh5 {[%clk 0:00:00]}  Qf6 {[%clk 0:00:00]} 15. Ng4 {[%clk 0:00:00]}  Bxg4 {[%clk 0:00:00]} 16. Qxg4 {[%clk 0:00:00]}  Kh8 {[%clk 0:00:00]} 17. f4 {[%clk 0:00:00]}  gxf4 {[%clk 0:00:00]} 18. Rxf4 {[%clk 0:00:00]}  exf4 {[%clk 0:00:00]} 19. Bd4 {[%clk 0:00:00]}  Qe5 {[%clk 0:00:00]} 20. Qxf4 {[%clk 0:00:00]}  f6 {[%clk 0:00:00]} 21. Bxe5 {[%clk 0:00:00]}  fxe5 {[%clk 0:00:00]} 22. Qxh6 {[%clk 0:00:00]}  Rf6 {[%clk 0:00:00]} 23. Qe3 {[%clk 0:00:00]}  Raf8 {[%clk 0:00:00]} 24. Qxa7 {[%clk 0:00:00]}  R8f7 {[%clk 0:00:00]} 25. a4 {[%clk 0:00:00]}  Nf8 {[%clk 0:00:00]} 26. a5 {[%clk 0:00:00]}  Ng6 {[%clk 0:00:00]} 27. g3 {[%clk 0:00:00]}  Rf3 {[%clk 0:00:00]} 28. Kg2 {[%clk 0:00:00]}  Kh7 {[%clk 0:00:00]} 29. a6 {[%clk 0:00:00]}  c5 {[%clk 0:00:00]} 30. Rg1 {[%clk 0:00:00]}  Rf2+ {[%clk 0:00:00]} 31. Kh3 {[%clk 0:00:00]}  R7f3 {[%clk 0:00:00]} 32. Qxc7+ {[%clk 0:00:00]}  Kh6 {[%clk 0:00:00]} 33. Qxd6 {[%clk 0:00:00]}  Rxc2 {[%clk 0:00:00]} 34. Kg4 {[%clk 0:00:00]}  Rcf2 {[%clk 0:00:00]} 35. h5 {[%clk 0:00:00]}  Rf6 {[%clk 0:00:00]} 36. Qxf6 {[%clk 0:00:00]}  Rxf6 {[%clk 0:00:00]} 37. Ra1 {[%clk 0:00:00]}  Rf8 {[%clk 0:00:00]} 38. hxg6 {[%clk 0:00:00]}  Kxg6 {[%clk 0:00:00]} 39. a7 {[%clk 0:00:00]}  Ra8 {[%clk 0:00:00]} 40. Ra6+ {[%clk 0:00:00]}  Kf7 {[%clk 0:00:00]} 41. Kf5 {[%clk 0:00:00]}  Ke7 {[%clk 0:00:00]} 42. Kxe5 {[%clk 0:00:00]}  Kd7 {[%clk 0:00:00]} 43. g4 {[%clk 0:00:00]}  Kc7 {[%clk 0:00:00]} 44. g5 {[%clk 0:00:00]}  Kb7 {[%clk 0:00:00]} 45. Ra3 {[%clk 0:00:00]}  Kb6 {[%clk 0:00:00]} 46. g6 {[%clk 0:00:00]}  Kb5 {[%clk 0:00:00]} 47. g7 {[%clk 0:00:00]}  c4 {[%clk 0:00:00]} 48. d4 {[%clk 0:00:00]} 1-0


[Site "https://www.chess.com"]

[Event "Titled Tuesday Blitz August 16 Late 2022"]
[White "Fernandez Hernandez, Gerardo"]
[Black "Novikova, Galina"]
[WhiteFideId "2207400"]
[BlackFideId "4157095"]
[WhiteElo "2169"]
[BlackElo "1923"]
[Result "0-1"]
[Round "09"]
[TimeControl "180+1"]
[Date "2022.08.18"]
[WhiteClock "0:00:00"]
[BlackClock "0:00:00"]

1. e4 {[%clk 0:00:00]}  e6 {[%clk 0:00:00]} 2. d3 {[%clk 0:00:00]}  d5 {[%clk 0:00:00]} 3. Nd2 {[%clk 0:00:00]}  Nf6 {[%clk 0:00:00]} 4. Ngf3 {[%clk 0:00:00]}  g6 {[%clk 0:00:00]} 5. g3 {[%clk 0:00:00]}  Bg7 {[%clk 0:00:00]} 6. Bg2 {[%clk 0:00:00]}  O-O {[%clk 0:00:00]} 7. O-O {[%clk 0:00:00]}  c5 {[%clk 0:00:00]} 8. Re1 {[%clk 0:00:00]}  Nc6 {[%clk 0:00:00]} 9. c3 {[%clk 0:00:00]}  a5 {[%clk 0:00:00]} 10. a4 {[%clk 0:00:00]}  b6 {[%clk 0:00:00]} 11. exd5 {[%clk 0:00:00]}  exd5 {[%clk 0:00:00]} 12. Nb3 {[%clk 0:00:00]}  Bf5 {[%clk 0:00:00]} 13. Bf4 {[%clk 0:00:00]}  Re8 {[%clk 0:00:00]} 14. Ne5 {[%clk 0:00:00]}  Nxe5 {[%clk 0:00:00]} 15. Bxe5 {[%clk 0:00:00]}  Rc8 {[%clk 0:00:00]} 16. Bxf6 {[%clk 0:00:00]}  Rxe1+ {[%clk 0:00:00]} 17. Qxe1 {[%clk 0:00:00]}  Bxf6 {[%clk 0:00:00]} 18. Qd2 {[%clk 0:00:00]}  Qd7 {[%clk 0:00:00]} 19. Re1 {[%clk 0:00:00]}  Rd8 {[%clk 0:00:00]} 20. d4 {[%clk 0:00:00]}  Qxa4 {[%clk 0:00:00]} 21. Qd1 {[%clk 0:00:00]}  c4 {[%clk 0:00:00]} 22. Nd2 {[%clk 0:00:00]}  Qxd1 {[%clk 0:00:00]} 23. Rxd1 {[%clk 0:00:00]}  Be6 {[%clk 0:00:00]} 24. Re1 {[%clk 0:00:00]}  b5 {[%clk 0:00:00]} 25. f4 {[%clk 0:00:00]}  b4 {[%clk 0:00:00]} 26. Kf2 {[%clk 0:00:00]}  Rb8 {[%clk 0:00:00]} 27. Rb1 {[%clk 0:00:00]}  Bf5 {[%clk 0:00:00]} 28. Re1 {[%clk 0:00:00]}  bxc3 {[%clk 0:00:00]} 29. bxc3 {[%clk 0:00:00]}  Rb2 {[%clk 0:00:00]} 30. Ke3 {[%clk 0:00:00]}  Be6 {[%clk 0:00:00]} 31. Ra1 {[%clk 0:00:00]}  Bd8 {[%clk 0:00:00]} 32. Bf3 {[%clk 0:00:00]}  h5 {[%clk 0:00:00]} 33. h4 {[%clk 0:00:00]}  Kg7 {[%clk 0:00:00]} 34. Bd1 {[%clk 0:00:00]}  Bf5 {[%clk 0:00:00]} 35. Bf3 {[%clk 0:00:00]}  Be6 {[%clk 0:00:00]} 36. Bd1 {[%clk 0:00:00]}  f6 {[%clk 0:00:00]} 37. Bf3 {[%clk 0:00:00]}  Rc2 {[%clk 0:00:00]} 38. Be2 {[%clk 0:00:00]}  Rxc3+ {[%clk 0:00:00]} 39. Kf2 {[%clk 0:00:00]}  Rc2 {[%clk 0:00:00]} 40. Ke3 {[%clk 0:00:00]}  Bd7 {[%clk 0:00:00]} 0-1


[Site "https://www.chess.com"]

[Event "Titled Tuesday Blitz August 16 Late 2022"]
[White "Ferreira, Vitor Hugo Vieira"]
[Black "Kim, Sergey"]
[WhiteFideId "2119765"]
[BlackFideId "13700570"]
[WhiteElo "2168"]
[BlackElo "2295"]
[Result "1/2-1/2"]
[Round "09"]
[TimeControl "180+1"]
[Date "2022.08.18"]
[WhiteClock "0:00:00"]
[BlackClock "0:00:00"]

1. d4 {[%clk 0:00:00]}  Nf6 {[%clk 0:00:00]} 2. c4 {[%clk 0:00:00]}  g6 {[%clk 0:00:00]} 3. Nc3 {[%clk 0:00:00]}  Bg7 {[%clk 0:00:00]} 4. e4 {[%clk 0:00:00]}  d6 {[%clk 0:00:00]} 5. Nf3 {[%clk 0:00:00]}  O-O {[%clk 0:00:00]} 6. Be2 {[%clk 0:00:00]}  e5 {[%clk 0:00:00]} 7. O-O {[%clk 0:00:00]}  exd4 {[%clk 0:00:00]} 8. Nxd4 {[%clk 0:00:00]}  Re8 {[%clk 0:00:00]} 9. f3 {[%clk 0:00:00]}  c6 {[%clk 0:00:00]} 10. Bf4 {[%clk 0:00:00]}  a5 {[%clk 0:00:00]} 11. Qd2 {[%clk 0:00:00]}  a4 {[%clk 0:00:00]} 12. Rad1 {[%clk 0:00:00]}  Nh5 {[%clk 0:00:00]} 13. Bh6 {[%clk 0:00:00]}  Bh8 {[%clk 0:00:00]} 14. f4 {[%clk 0:00:00]}  Nf6 {[%clk 0:00:00]} 15. Bg5 {[%clk 0:00:00]}  Qb6 {[%clk 0:00:00]} 16. Bf3 {[%clk 0:00:00]}  Ng4 {[%clk 0:00:00]} 17. h3 {[%clk 0:00:00]}  Ne5 {[%clk 0:00:00]} 18. Be2 {[%clk 0:00:00]}  Ned7 {[%clk 0:00:00]} 19. Kh1 {[%clk 0:00:00]}  Nc5 {[%clk 0:00:00]} 20. Bf3 {[%clk 0:00:00]}  Nbd7 {[%clk 0:00:00]} 21. Nde2 {[%clk 0:00:00]}  Qb4 {[%clk 0:00:00]} 22. Qxd6 {[%clk 0:00:00]}  Qxc4 {[%clk 0:00:00]} 23. Nd4 {[%clk 0:00:00]}  Bg7 {[%clk 0:00:00]} 24. a3 {[%clk 0:00:00]}  Bf8 {[%clk 0:00:00]} 25. Be2 {[%clk 0:00:00]}  Qxe2 {[%clk 0:00:00]} 26. Ndxe2 {[%clk 0:00:00]}  Bxd6 {[%clk 0:00:00]} 27. Rxd6 {[%clk 0:00:00]}  Nxe4 {[%clk 0:00:00]} 28. Nxe4 {[%clk 0:00:00]}  Rxe4 {[%clk 0:00:00]} 29. Nc3 {[%clk 0:00:00]}  Re8 {[%clk 0:00:00]} 30. Rfd1 {[%clk 0:00:00]}  Nc5 {[%clk 0:00:00]} 31. Bf6 {[%clk 0:00:00]}  Be6 {[%clk 0:00:00]} 32. Bd4 {[%clk 0:00:00]}  Nb3 {[%clk 0:00:00]} 33. Be5 {[%clk 0:00:00]}  Nc5 {[%clk 0:00:00]} 34. Bd4 {[%clk 0:00:00]}  Nb3 {[%clk 0:00:00]} 35. Be5 {[%clk 0:00:00]}  Bf5 {[%clk 0:00:00]} 36. g4 {[%clk 0:00:00]}  Bc2 {[%clk 0:00:00]} 37. Rf1 {[%clk 0:00:00]}  Nc5 {[%clk 0:00:00]} 38. Kh2 {[%clk 0:00:00]}  Ne4 {[%clk 0:00:00]} 39. Nxe4 {[%clk 0:00:00]}  Bxe4 {[%clk 0:00:00]} 40. Rfd1 {[%clk 0:00:00]}  Bd5 {[%clk 0:00:00]} 41. Rd2 {[%clk 0:00:00]}  Rad8 {[%clk 0:00:00]} 42. Rxd8 {[%clk 0:00:00]}  Rxd8 {[%clk 0:00:00]} 43. Kg3 {[%clk 0:00:00]}  Re8 {[%clk 0:00:00]} 44. Kh4 {[%clk 0:00:00]}  Re6 {[%clk 0:00:00]} 45. Kg5 {[%clk 0:00:00]}  Kf8 {[%clk 0:00:00]} 46. Bd4 {[%clk 0:00:00]}  Ke7 {[%clk 0:00:00]} 47. Bc5+ {[%clk 0:00:00]}  Kd7 {[%clk 0:00:00]} 48. Bd4 {[%clk 0:00:00]}  Re4 {[%clk 0:00:00]} 49. Be5 {[%clk 0:00:00]}  Ke7 {[%clk 0:00:00]} 50. Kh6 {[%clk 0:00:00]}  f6 {[%clk 0:00:00]} 51. Bc3 {[%clk 0:00:00]}  Rxf4 {[%clk 0:00:00]} 52. Kxh7 {[%clk 0:00:00]}  g5 {[%clk 0:00:00]} 53. Kg6 {[%clk 0:00:00]}  Be4+ {[%clk 0:00:00]} 54. Kg7 {[%clk 0:00:00]}  f5 {[%clk 0:00:00]} 55. Bf6+ {[%clk 0:00:00]}  Ke6 {[%clk 0:00:00]} 56. Bxg5 {[%clk 0:00:00]}  fxg4 {[%clk 0:00:00]} 57. Bxf4 {[%clk 0:00:00]}  gxh3 {[%clk 0:00:00]} 58. Rh2 {[%clk 0:00:00]}  Bg2 {[%clk 0:00:00]} 59. Kg6 {[%clk 0:00:00]}  Kd5 {[%clk 0:00:00]} 60. Kg5 {[%clk 0:00:00]}  c5 {[%clk 0:00:00]} 61. Kg4 {[%clk 0:00:00]}  Kc4 {[%clk 0:00:00]} 62. Kg3 {[%clk 0:00:00]}  b5 {[%clk 0:00:00]} 63. Be5 {[%clk 0:00:00]}  b4 {[%clk 0:00:00]} 64. axb4 {[%clk 0:00:00]}  cxb4 {[%clk 0:00:00]} 65. Rxg2 {[%clk 0:00:00]}  hxg2 {[%clk 0:00:00]} 66. Kxg2 {[%clk 0:00:00]}  Kb3 {[%clk 0:00:00]} 67. Kf3 {[%clk 0:00:00]}  a3 {[%clk 0:00:00]} 68. bxa3 {[%clk 0:00:00]}  bxa3 {[%clk 0:00:00]} 69. Ke2 {[%clk 0:00:00]}  a2 {[%clk 0:00:00]} 70. Kd1 {[%clk 0:00:00]}  a1=Q+ {[%clk 0:00:00]} 71. Bxa1 {[%clk 0:00:00]} 1/2-1/2


[Site "https://www.chess.com"]

[Event "Titled Tuesday Blitz August 16 Late 2022"]
[White "Filgueira, Hernan"]
[Black "Martinez Reyes, Pedro Ramon"]
[WhiteFideId "101770"]
[BlackFideId "3901807"]
[WhiteElo "2363"]
[BlackElo "2327"]
[Result "1/2-1/2"]
[Round "09"]
[TimeControl "180+1"]
[Date "2022.08.18"]
[WhiteClock "0:00:00"]
[BlackClock "0:00:00"]

1. Nf3 {[%clk 0:00:00]}  d5 {[%clk 0:00:00]} 2. g3 {[%clk 0:00:00]}  Bf5 {[%clk 0:00:00]} 3. Bg2 {[%clk 0:00:00]}  e6 {[%clk 0:00:00]} 4. O-O {[%clk 0:00:00]}  c6 {[%clk 0:00:00]} 5. d3 {[%clk 0:00:00]}  Nf6 {[%clk 0:00:00]} 6. Nfd2 {[%clk 0:00:00]}  Nbd7 {[%clk 0:00:00]} 7. e4 {[%clk 0:00:00]}  Bg6 {[%clk 0:00:00]} 8. Nc3 {[%clk 0:00:00]}  d4 {[%clk 0:00:00]} 9. Ne2 {[%clk 0:00:00]}  e5 {[%clk 0:00:00]} 10. f4 {[%clk 0:00:00]}  Bh5 {[%clk 0:00:00]} 11. Nf3 {[%clk 0:00:00]}  Bxf3 {[%clk 0:00:00]} 12. Bxf3 {[%clk 0:00:00]}  Bd6 {[%clk 0:00:00]} 13. Bd2 {[%clk 0:00:00]}  Qe7 {[%clk 0:00:00]} 14. a3 {[%clk 0:00:00]}  h5 {[%clk 0:00:00]} 15. h3 {[%clk 0:00:00]}  h4 {[%clk 0:00:00]} 16. g4 {[%clk 0:00:00]}  exf4 {[%clk 0:00:00]} 17. Nxf4 {[%clk 0:00:00]}  Ne5 {[%clk 0:00:00]} 18. Bg2 {[%clk 0:00:00]}  O-O-O {[%clk 0:00:00]} 19. b4 {[%clk 0:00:00]}  Kb8 {[%clk 0:00:00]} 20. Rb1 {[%clk 0:00:00]}  g5 {[%clk 0:00:00]} 21. Nh5 {[%clk 0:00:00]}  Nxh5 {[%clk 0:00:00]} 22. gxh5 {[%clk 0:00:00]}  g4 {[%clk 0:00:00]} 23. h6 {[%clk 0:00:00]}  gxh3 {[%clk 0:00:00]} 24. Bxh3 {[%clk 0:00:00]}  Rdg8+ {[%clk 0:00:00]} 25. Kh1 {[%clk 0:00:00]}  Rg3 {[%clk 0:00:00]} 26. Bf5 {[%clk 0:00:00]}  Ng6 {[%clk 0:00:00]} 27. Qh5 {[%clk 0:00:00]}  Qe5 {[%clk 0:00:00]} 28. Rf2 {[%clk 0:00:00]}  Re3 {[%clk 0:00:00]} 29. Bxg6 {[%clk 0:00:00]}  Qg3 {[%clk 0:00:00]} 30. Rg2 {[%clk 0:00:00]}  Qh3+ {[%clk 0:00:00]} 31. Kg1 {[%clk 0:00:00]}  Rg3 {[%clk 0:00:00]} 32. Qe2 {[%clk 0:00:00]}  fxg6 {[%clk 0:00:00]} 33. Rxg3 {[%clk 0:00:00]}  hxg3 {[%clk 0:00:00]} 34. Qg2 {[%clk 0:00:00]}  Qh5 {[%clk 0:00:00]} 35. Be1 {[%clk 0:00:00]}  g5 {[%clk 0:00:00]} 36. Bxg3 {[%clk 0:00:00]}  Bf4 {[%clk 0:00:00]} 37. Rf1 {[%clk 0:00:00]}  Qxh6 {[%clk 0:00:00]} 38. Rf3 {[%clk 0:00:00]}  Ka8 {[%clk 0:00:00]} 39. Kf2 {[%clk 0:00:00]}  Be3+ {[%clk 0:00:00]} 40. Ke2 {[%clk 0:00:00]}  Qh5 {[%clk 0:00:00]} 41. c3 {[%clk 0:00:00]}  a5 {[%clk 0:00:00]} 42. cxd4 {[%clk 0:00:00]}  Bxd4 {[%clk 0:00:00]} 43. bxa5 {[%clk 0:00:00]}  Rf8 {[%clk 0:00:00]} 44. e5 {[%clk 0:00:00]}  Re8 {[%clk 0:00:00]} 45. Kd2 {[%clk 0:00:00]}  Bxe5 {[%clk 0:00:00]} 46. Bxe5 {[%clk 0:00:00]}  Rxe5 {[%clk 0:00:00]} 47. Rf8+ {[%clk 0:00:00]}  Ka7 {[%clk 0:00:00]} 48. Qf2+ {[%clk 0:00:00]}  c5 {[%clk 0:00:00]} 49. Rf5 {[%clk 0:00:00]}  Rxf5 {[%clk 0:00:00]} 50. Qxf5 {[%clk 0:00:00]}  Qh2+ {[%clk 0:00:00]} 51. Kc3 {[%clk 0:00:00]}  Qf2 {[%clk 0:00:00]} 52. Qd5 {[%clk 0:00:00]}  g4 {[%clk 0:00:00]} 53. a6 {[%clk 0:00:00]}  bxa6 {[%clk 0:00:00]} 54. Qd7+ {[%clk 0:00:00]}  Kb6 {[%clk 0:00:00]} 55. Qd6+ {[%clk 0:00:00]}  Kb5 {[%clk 0:00:00]} 56. Qd7+ {[%clk 0:00:00]}  Kb6 {[%clk 0:00:00]} 57. Qd6+ {[%clk 0:00:00]}  Kb7 {[%clk 0:00:00]} 58. Qd7+ {[%clk 0:00:00]}  Kb6 {[%clk 0:00:00]} 1/2-1/2


[Site "https://www.chess.com"]

[Event "Titled Tuesday Blitz August 16 Late 2022"]
[White "Gheorghiu, Calin"]
[Black "Howell, David W L"]
[WhiteFideId "1200305"]
[BlackFideId "410608"]
[WhiteElo "2168"]
[BlackElo "2559"]
[Result "0-1"]
[Round "09"]
[TimeControl "180+1"]
[Date "2022.08.16"]
[WhiteClock "0:00:02"]
[BlackClock "0:00:02"]

1. d4 {[%clk 0:02:55]}  e6 {[%clk 0:02:52]} 2. Nc3 {[%clk 0:02:48]}  d5 {[%clk 0:02:45]} 3. Bf4 {[%clk 0:02:47]}  Nf6 {[%clk 0:02:34]} 4. Nb5 {[%clk 0:02:45]}  Bb4+ {[%clk 0:02:22]} 5. c3 {[%clk 0:02:45]}  Ba5 {[%clk 0:02:22]} 6. a4 {[%clk 0:02:41]}  a6 {[%clk 0:02:19]} 7. b4 {[%clk 0:02:37]}  axb5 {[%clk 0:01:53]} 8. axb5 {[%clk 0:02:13]}  Nh5 {[%clk 0:01:39]} 9. Bd2 {[%clk 0:02:05]}  c6 {[%clk 0:01:39]} 10. bxa5 {[%clk 0:01:59]}  Rxa5 {[%clk 0:01:37]} 11. Rxa5 {[%clk 0:01:55]}  Qxa5 {[%clk 0:01:38]} 12. e4 {[%clk 0:01:54]}  Nf6 {[%clk 0:01:37]} 13. c4 {[%clk 0:01:50]}  Qa7 {[%clk 0:01:29]} 14. exd5 {[%clk 0:01:25]}  exd5 {[%clk 0:01:28]} 15. Nf3 {[%clk 0:01:21]}  O-O {[%clk 0:01:25]} 16. Be2 {[%clk 0:01:21]}  dxc4 {[%clk 0:01:23]} 17. bxc6 {[%clk 0:01:17]}  b5 {[%clk 0:01:08]} 18. Bb4 {[%clk 0:01:08]}  Rd8 {[%clk 0:01:02]} 19. O-O {[%clk 0:01:04]}  Nxc6 {[%clk 0:01:00]} 20. Bc5 {[%clk 0:01:03]}  Qb8 {[%clk 0:00:51]} 21. Qb1 {[%clk 0:00:49]}  h6 {[%clk 0:00:45]} 22. h3 {[%clk 0:00:48]}  Nd5 {[%clk 0:00:43]} 23. Re1 {[%clk 0:00:44]}  Nc3 {[%clk 0:00:37]} 24. Qc2 {[%clk 0:00:36]}  Nxe2+ {[%clk 0:00:35]} 25. Qxe2 {[%clk 0:00:35]}  Be6 {[%clk 0:00:32]} 26. Rb1 {[%clk 0:00:28]}  Bd5 {[%clk 0:00:17]} 27. Nh4 {[%clk 0:00:25]}  Qf4 {[%clk 0:00:15]} 28. g3 {[%clk 0:00:25]}  Qg5 {[%clk 0:00:04]} 29. Rxb5 {[%clk 0:00:16]}  c3 {[%clk 0:00:04]} 30. Rb1 {[%clk 0:00:14]}  Rc8 {[%clk 0:00:02]} 31. Qd3 {[%clk 0:00:12]}  Nxd4 {[%clk 0:00:02]} 32. Qxd4 {[%clk 0:00:02]}  c2 {[%clk 0:00:02]} 33. Re1 {[%clk 0:00:02]}  c1=Q {[%clk 0:00:02]} 0-1


[Site "https://www.chess.com"]